fUST/lending_fUST_20260506
["ID","MTS","AMOUNT","RATE_DAILY","PERIOD"]
[421672067,1778037043000,-2698.45,0.00012876,2]
[421672069,1778037043000,-748.39132908,0.00012882,2]
[421672018,1778037043000,-24724.9,0.00012876,2]
[421672061,1778037043000,-1301.51,0.00012876,2]
[421672033,1778037043000,-1600.96,0.00012876,2]
[421672006,1778037043000,-645.67,0.00012876,2]
[421672031,1778037043000,-1428.52,0.00012876,2]
[421671956,1778037043000,-1894.53,0.00012876,2]
[421671959,1778037043000,-1161.05,0.00012876,2]
[421671965,1778037043000,-500.0,0.00012876,2]
[421671962,1778037043000,-500.0,0.00012876,2]
[421671967,1778037043000,-500.0,0.00012876,2]
[421671971,1778037043000,-500.0,0.00012876,2]
[421671969,1778037043000,-500.0,0.00012876,2]
[421671986,1778037043000,-3234.18,0.00012876,2]
[421671988,1778037043000,-707.19,0.00012876,2]
[421671990,1778037043000,-500.0,0.00012876,2]
[421672004,1778037043000,-500.0,0.00012876,2]
[421672021,1778037043000,-2183.28,0.00012876,2]
[421672008,1778037043000,-500.99700274,0.00012876,2]
[421672012,1778037043000,-1169.05,0.00012876,2]
[421672081,1778037043000,-201.86393875,0.00013149,2]
[421671992,1778037043000,-1387.91,0.00012876,2]
[421672002,1778037043000,-500.0,0.00012876,2]
[421672000,1778037043000,-855.63,0.00012876,2]
[421671998,1778037043000,-2624.98,0.00012876,2]
[421671996,1778037043000,-1683.76,0.00012876,2]
[421672014,1778037043000,-1095.43,0.00012876,2]
[421672016,1778037043000,-500.0,0.00012876,2]
[421672027,1778037043000,-500.0,0.00012876,2]
[421672029,1778037043000,-4934.05,0.00012876,2]
[421672010,1778037043000,-500.0,0.00012876,2]
[421672090,1778037043000,-500.0,0.0001315,2]
[421671994,1778037043000,-500.0,0.00012876,2]
[421672085,1778037043000,-205.93,0.0001315,2]
[421672145,1778037043000,-500.0,0.0001315,2]
[421672144,1778037043000,-500.0,0.0001315,2]
[421672147,1778037043000,-500.0,0.0001315,2]
[421672149,1778037043000,-626.67,0.0001315,2]
[421672151,1778037043000,-500.0,0.0001315,2]
[421672155,1778037043000,-722.65,0.0001315,2]
[421672153,1778037043000,-500.0,0.0001315,2]
[421672157,1778037043000,-500.0,0.0001315,2]
[421672170,1778037043000,-922.49,0.0001315,2]
[421672159,1778037043000,-500.0,0.0001315,2]
[421672173,1778037043000,-500.0,0.0001315,2]
[421672174,1778037043000,-500.0,0.0001315,2]
[421672178,1778037043000,-500.0,0.0001315,2]
[421672176,1778037043000,-1532.5,0.0001315,2]
[421672161,1778037043000,-715.48,0.0001315,2]
[421672164,1778037043000,-500.0,0.0001315,2]
[421672163,1778037043000,-500.0,0.0001315,2]
[421672180,1778037043000,-500.0,0.0001315,2]
[421672166,1778037043000,-1526.03,0.0001315,2]
[421672182,1778037043000,-500.0,0.0001315,2]
[421672186,1778037043000,-500.0,0.0001315,2]
[421672190,1778037043000,-500.0,0.0001315,2]
[421672184,1778037043000,-500.0,0.0001315,2]
[421672188,1778037043000,-659.95,0.0001315,2]
[421672077,1778037043000,-832.0,0.00013058,2]
[421672142,1778037043000,-500.0,0.0001315,2]
[421672140,1778037043000,-1446.31,0.0001315,2]
[421672168,1778037043000,-500.0,0.0001315,2]
[421672136,1778037043000,-500.0,0.0001315,2]
[421672138,1778037043000,-500.0,0.0001315,2]
[421672073,1778037043000,-600.0,0.00012978,2]
[421672084,1778037043000,-2078.8347,0.0001315,2]
[421672075,1778037043000,-151.0,0.00013,2]
[421672091,1778037043000,-500.0,0.0001315,2]
[421672102,1778037043000,-654.78,0.0001315,2]
[421672103,1778037043000,-500.0,0.0001315,2]
[421672095,1778037043000,-500.0,0.0001315,2]
[421672098,1778037043000,-500.0,0.0001315,2]
[421672093,1778037043000,-530.84,0.0001315,2]
[421672108,1778037043000,-500.0,0.0001315,2]
[421672110,1778037043000,-500.0,0.0001315,2]
[421672100,1778037043000,-538.0139603,0.0001315,2]
[421672106,1778037043000,-688.45,0.0001315,2]
[421672114,1778037043000,-500.0,0.0001315,2]
[421672128,1778037043000,-500.0,0.0001315,2]
[421672134,1778037043000,-659.62,0.0001315,2]
[421672130,1778037043000,-500.0,0.0001315,2]
[421672132,1778037043000,-500.0,0.0001315,2]
[421672126,1778037043000,-500.0,0.0001315,2]
[421672124,1778037043000,-500.0,0.0001315,2]
[421672120,1778037043000,-500.0,0.0001315,2]
[421672118,1778037043000,-500.0,0.0001315,2]
[421672116,1778037043000,-500.0,0.0001315,2]
[421672112,1778037043000,-501.22,0.0001315,2]
[421672122,1778037043000,-500.0,0.0001315,2]
[421672276,1778037044000,-604.58713677,0.0001315,2]
[421672267,1778037044000,-1894.53,0.0001315,2]
[421672282,1778037044000,-500.0,0.0001315,2]
[421672268,1778037044000,-1161.05,0.0001315,2]
[421672274,1778037044000,-500.0,0.0001315,2]
[421672264,1778037044000,-1739.53,0.0001315,2]
[421672256,1778037044000,-1277.08,0.0001315,2]
[421672262,1778037044000,-922.42,0.0001315,2]
[421672260,1778037044000,-4242.9,0.0001315,2]
[421672259,1778037044000,-509.82,0.0001315,2]
[421672254,1778037044000,-1637.63,0.0001315,2]
[421672278,1778037044000,-3234.18,0.0001315,2]
[421672272,1778037044000,-500.0,0.0001315,2]
[421672270,1778037044000,-500.0,0.0001315,2]
[421672306,1778037044000,-24724.9,0.0001315,2]
[421672285,1778037044000,-1387.91,0.0001315,2]
[421672287,1778037044000,-1683.76,0.0001315,2]
[421672288,1778037044000,-2624.98,0.0001315,2]
[421672294,1778037044000,-500.0,0.0001315,2]
[421672298,1778037044000,-500.0,0.0001315,2]
[421672302,1778037044000,-1095.43,0.0001315,2]
[421672292,1778037044000,-500.0,0.0001315,2]
[421672300,1778037044000,-1169.05,0.0001315,2]
[421672290,1778037044000,-855.63,0.0001315,2]
[421672304,1778037044000,-500.0,0.0001315,2]
[421672296,1778037044000,-645.67,0.0001315,2]
[421672307,1778037044000,-500.0,0.0001315,2]
[421672252,1778037044000,-500.0,0.0001315,2]
[421672280,1778037044000,-707.19,0.0001315,2]
[421672248,1778037044000,-500.0,0.0001315,2]
[421672206,1778037044000,-500.0,0.0001315,2]
[421672242,1778037044000,-1790.71,0.0001315,2]
[421672195,1778037044000,-664.68,0.0001315,2]
[421672197,1778037044000,-500.0,0.0001315,2]
[421672199,1778037044000,-1369.65,0.0001315,2]
[421672309,1778037044000,-2183.28,0.0001315,2]
[421672204,1778037044000,-500.0,0.0001315,2]
[421672201,1778037044000,-500.0,0.0001315,2]
[421672203,1778037044000,-5877.6,0.0001315,2]
[421672193,1778037044000,-500.0,0.0001315,2]
[421672192,1778037044000,-655.31,0.0001315,2]
[421672208,1778037044000,-1343.2,0.0001315,2]
[421672210,1778037044000,-500.0,0.0001315,2]
[421672220,1778037044000,-500.0,0.0001315,2]
[421672222,1778037044000,-500.0,0.0001315,2]
[421672224,1778037044000,-998.17,0.0001315,2]
[421672212,1778037044000,-1428.1,0.0001315,2]
[421672227,1778037044000,-1485.79,0.0001315,2]
[421672217,1778037044000,-1384.99,0.0001315,2]
[421672213,1778037044000,-572.16,0.0001315,2]
[421672215,1778037044000,-500.0,0.0001315,2]
[421672219,1778037044000,-1625.81,0.0001315,2]
[421672232,1778037044000,-570.49,0.0001315,2]
[421672229,1778037044000,-5044.4,0.0001315,2]
[421672231,1778037044000,-500.0,0.0001315,2]
[421672234,1778037044000,-4630.43,0.0001315,2]
[421672240,1778037044000,-500.0,0.0001315,2]
[421672236,1778037044000,-500.0,0.0001315,2]
[421672244,1778037044000,-500.0,0.0001315,2]
[421672238,1778037044000,-906.85,0.0001315,2]
[421672246,1778037044000,-500.0,0.0001315,2]
[421672250,1778037044000,-500.0,0.0001315,2]
[421672311,1778037044000,-998.3,0.0001315,2]
[421672336,1778037044000,-500.0,0.0001315,2]
[421672316,1778037044000,-4934.05,0.0001315,2]
[421672380,1778037044000,-500.0,0.00013424,2]
[421672382,1778037044000,-500.0,0.00013424,2]
[421672393,1778037044000,-311.68987643,0.00013424,2]
[421672399,1778037044000,-500.0,0.00013424,2]
[421672389,1778037044000,-500.0,0.00013424,2]
[421672395,1778037044000,-500.0,0.00013424,2]
[421672397,1778037044000,-500.0,0.00013424,2]
[421672386,1778037044000,-500.0,0.00013424,2]
[421672388,1778037044000,-500.0,0.00013424,2]
[421672401,1778037044000,-500.0,0.00013424,2]
[421672384,1778037044000,-501.22,0.00013424,2]
[421672324,1778037044000,-500.0,0.0001315,2]
[421672391,1778037044000,-500.0,0.00013424,2]
[421672404,1778037044000,-500.0,0.00013424,2]
[421672406,1778037044000,-1446.31,0.00013424,2]
[421672408,1778037044000,-500.0,0.00013424,2]
[421672418,1778037044000,-500.0,0.00013424,2]
[421672420,1778037044000,-500.0,0.00013424,2]
[421672421,1778037044000,-722.65,0.00013424,2]
[421672410,1778037044000,-500.0,0.00013424,2]
[421672423,1778037044000,-500.0,0.00013424,2]
[421672425,1778037044000,-500.0,0.00013424,2]
[421672414,1778037044000,-500.0,0.00013424,2]
[421672412,1778037044000,-500.0,0.00013424,2]
[421672427,1778037044000,-715.48,0.00013424,2]
[421672416,1778037044000,-626.67,0.00013424,2]
[421672429,1778037044000,-500.0,0.00013424,2]
[421672431,1778037044000,-500.0,0.00013424,2]
[421672433,1778037044000,-1526.03,0.00013424,2]
[421672378,1778037044000,-688.45,0.00013424,2]
[421672361,1778037044000,-165.58,0.00013422,2]
[421672403,1778037044000,-659.62,0.00013424,2]
[421672376,1778037044000,-500.0,0.00013424,2]
[421672322,1778037044000,-734.16,0.0001315,2]
[421672374,1778037044000,-654.78,0.00013424,2]
[421672313,1778037044000,-500.0,0.0001315,2]
[421672315,1778037044000,-500.0,0.0001315,2]
[421672318,1778037044000,-1428.52,0.0001315,2]
[421672330,1778037044000,-1528.26,0.0001315,2]
[421672320,1778037044000,-1600.96,0.0001315,2]
[421672328,1778037044000,-927.9,0.0001315,2]
[421672331,1778037044000,-500.0,0.0001315,2]
[421672334,1778037044000,-2386.82,0.0001315,2]
[421672344,1778037044000,-1301.51,0.0001315,2]
[421672346,1778037044000,-1304.24,0.0001315,2]
[421672348,1778037044000,-500.0,0.0001315,2]
[421672350,1778037044000,-2698.45,0.0001315,2]
[421672326,1778037044000,-500.0,0.0001315,2]
[421672352,1778037044000,-1019.69,0.000132,2]
[421672355,1778037044000,-171.72166825,0.00013268,2]
[421672367,1778037044000,-500.0,0.00013424,2]
[421672372,1778037044000,-500.0,0.00013424,2]
[421672369,1778037044000,-530.84,0.00013424,2]
[421672371,1778037044000,-500.0,0.00013424,2]
[421672359,1778037044000,-50952.0,0.000133,2]
[421672363,1778037044000,-1088.91747707,0.00013424,2]
[421672340,1778037044000,-3115.11,0.0001315,2]
[421672338,1778037044000,-2715.88,0.0001315,2]
[421672357,1778037044000,-164.0287,0.00013287,2]
[421672365,1778037044000,-2078.8347,0.00013424,2]
[421672353,1778037044000,-300.0,0.0001321,2]
[421672342,1778037044000,-5239.35,0.0001315,2]
[421672440,1778037045000,-500.0,0.00013424,2]
[421672438,1778037045000,-1532.5,0.00013424,2]
[421672442,1778037045000,-500.0,0.00013424,2]
[421672437,1778037045000,-500.0,0.00013424,2]
[421672449,1778037045000,-500.0,0.00013424,2]
[421672434,1778037045000,-500.0,0.00013424,2]
[421672447,1778037045000,-659.95,0.00013424,2]
[421672446,1778037045000,-500.0,0.00013424,2]
[421672444,1778037045000,-495.87374973,0.00013424,2]
[421672436,1778037045000,-500.0,0.00013424,2]
[421672435,1778037045000,-922.49,0.00013424,2]
[421672451,1778037045000,-655.31,0.00013424,2]
[421672544,1778037045000,-396.51050956,0.00013424,2]
[421672455,1778037045000,-664.68,0.00013424,2]
[421672457,1778037045000,-500.0,0.00013424,2]
[421672460,1778037045000,-461.0866813,0.00013424,2]
[421672459,1778037045000,-1369.65,0.00013424,2]
[421672462,1778037045000,-5009.72556262,0.00013424,2]
[421672547,1778037045000,-329.73061335,0.00013424,2]
[421672534,1778037045000,-867.87443738,0.00013424,2]
[421672536,1778037045000,-500.0,0.00013424,2]
[421672538,1778037045000,-232.49970762,0.00013424,2]
[421672540,1778037045000,-946.68949044,0.00013424,2]
[421672550,1778037045000,-241.93320513,0.00013424,2]
[421672554,1778037045000,-1104.50867755,0.00013424,2]
[421672453,1778037045000,-500.0,0.00013424,2]
[421672644,1778037046000,-1384.99,0.00013424,2]
[421672647,1778037046000,-500.0,0.00013424,2]
[421672649,1778037046000,-397.69232675,0.00013424,2]
[421672637,1778037046000,-323.59132245,0.00013424,2]
[421672642,1778037046000,-500.0,0.00013424,2]
[421672707,1778037046000,-688.92404718,0.00012326,2]
[421672639,1778037046000,-572.16,0.00013424,2]
[421672976,1778038235000,-436.15799852,9.946e-05,2]
[421672977,1778038236000,-801.56076895,0.00010046,2]
[421672979,1778038236000,-739.60250072,0.00010147,2]
[421672978,1778038236000,-4198.43923105,0.00010147,2]
[421673034,1778038238000,-61.95826823,0.00010147,2]
[421673056,1778038238000,-571.21208519,0.00012027,2]
[421673052,1778038238000,-582.68760066,0.00012027,2]
[421673047,1778038238000,-303.71428585,0.00012027,2]
[421673045,1778038238000,-500.0,0.00012027,2]
[421673049,1778038238000,-500.0,0.00012027,2]
[421673051,1778038238000,-500.0,0.00012027,2]
[421673041,1778038238000,-300.0,0.00012025,2]
[421673036,1778038238000,-164.71,0.00011588,2]
[421673039,1778038238000,-292.0,0.00011699,3]
[421673038,1778038238000,-168.45,0.00011588,2]
[421673043,1778038238000,-1562.0,0.00012026,2]
[421673054,1778038238000,-500.0,0.00012027,2]
[421673066,1778038238000,-160.0,0.00012209,2]
[421673075,1778038238000,-1921.3525,0.00012328,2]
[421673067,1778038238000,-161.57016804,0.00012209,2]
[421673064,1778038238000,-267477.53974315,0.00012028,2]
[421673062,1778038238000,-170.40066329,0.00012027,2]
[421673060,1778038238000,-179.08535945,0.00012027,2]
[421673071,1778038238000,-160.0,0.00012209,2]
[421673069,1778038238000,-160.0,0.00012209,2]
[421673058,1778038238000,-500.0,0.00012027,2]
[421673073,1778038238000,-158.393,0.00012327,2]
[421673139,1778038239000,-500.0,0.00012328,2]
[421673145,1778038239000,-500.0,0.00012328,2]
[421673156,1778038239000,-500.0,0.00012328,2]
[421673158,1778038239000,-546.72,0.00012328,2]
[421673154,1778038239000,-500.0,0.00012328,2]
[421673146,1778038239000,-500.0,0.00012328,2]
[421673150,1778038239000,-500.0,0.00012328,2]
[421673152,1778038239000,-500.0,0.00012328,2]
[421673143,1778038239000,-500.0,0.00012328,2]
[421673137,1778038239000,-500.0,0.00012328,2]
[421673135,1778038239000,-500.0,0.00012328,2]
[421673141,1778038239000,-500.0,0.00012328,2]
[421673162,1778038239000,-500.0,0.00012328,2]
[421673168,1778038239000,-500.0,0.00012328,2]
[421673172,1778038239000,-500.0,0.00012328,2]
[421673166,1778038239000,-1386.04,0.00012328,2]
[421673176,1778038239000,-500.0,0.00012328,2]
[421673160,1778038239000,-632.13,0.00012328,2]
[421673170,1778038239000,-692.54,0.00012328,2]
[421673174,1778038239000,-500.0,0.00012328,2]
[421673179,1778038239000,-500.0,0.00012328,2]
[421673177,1778038239000,-600.55,0.00012328,2]
[421673183,1778038239000,-500.0,0.00012328,2]
[421673181,1778038239000,-500.0,0.00012328,2]
[421673199,1778038239000,-500.0,0.00012328,2]
[421673185,1778038239000,-500.0,0.00012328,2]
[421673136,1778038239000,-500.0,0.00012328,2]
[421673164,1778038239000,-500.0,0.00012328,2]
[421673148,1778038239000,-500.0,0.00012328,2]
[421673104,1778038239000,-500.0,0.00012328,2]
[421673131,1778038239000,-636.99,0.00012328,2]
[421673077,1778038239000,-500.0,0.00012328,2]
[421673079,1778038239000,-500.0,0.00012328,2]
[421673081,1778038239000,-500.0,0.00012328,2]
[421673085,1778038239000,-503.28400483,0.00012328,2]
[421673083,1778038239000,-500.0,0.00012328,2]
[421673093,1778038239000,-500.0,0.00012328,2]
[421673087,1778038239000,-500.0,0.00012328,2]
[421673099,1778038239000,-685.67,0.00012328,2]
[421673100,1778038239000,-500.0,0.00012328,2]
[421673091,1778038239000,-500.0,0.00012328,2]
[421673095,1778038239000,-500.0,0.00012328,2]
[421673089,1778038239000,-500.0,0.00012328,2]
[421673097,1778038239000,-500.0,0.00012328,2]
[421673133,1778038239000,-500.0,0.00012328,2]
[421673102,1778038239000,-500.0,0.00012328,2]
[421673108,1778038239000,-500.0,0.00012328,2]
[421673106,1778038239000,-462.91765255,0.00012328,2]
[421673112,1778038239000,-628.01,0.00012328,2]
[421673114,1778038239000,-500.0,0.00012328,2]
[421673120,1778038239000,-1249.9,0.00012328,2]
[421673116,1778038239000,-500.0,0.00012328,2]
[421673118,1778038239000,-500.0,0.00012328,2]
[421673130,1778038239000,-500.0,0.00012328,2]
[421673122,1778038239000,-500.0,0.00012328,2]
[421673125,1778038239000,-500.0,0.00012328,2]
[421673124,1778038239000,-500.0,0.00012328,2]
[421673110,1778038239000,-500.0,0.00012328,2]
[421673128,1778038239000,-500.0,0.00012328,2]
[421673201,1778038239000,-884.06,0.00012328,2]
[421673203,1778038239000,-500.0,0.00012328,2]
[421673207,1778038239000,-500.0,0.00012328,2]
[421673281,1778038239000,-4834.21,0.00012328,2]
[421673257,1778038239000,-500.0,0.00012328,2]
[421673261,1778038239000,-500.0,0.00012328,2]
[421673267,1778038239000,-524.48,0.00012328,2]
[421673263,1778038239000,-627.49,0.00012328,2]
[421673265,1778038239000,-500.0,0.00012328,2]
[421673277,1778038239000,-500.0,0.00012328,2]
[421673270,1778038239000,-1309.09,0.00012328,2]
[421673274,1778038239000,-956.58,0.00012328,2]
[421673271,1778038239000,-1541.49,0.00012328,2]
[421673279,1778038239000,-1423.88,0.00012328,2]
[421673197,1778038239000,-677.72,0.00012328,2]
[421673283,1778038239000,-500.0,0.00012328,2]
[421673287,1778038239000,-500.0,0.00012328,2]
[421673247,1778038239000,-1312.58,0.00012328,2]
[421673285,1778038239000,-4437.5,0.00012328,2]
[421673290,1778038239000,-500.0,0.00012328,2]
[421673299,1778038239000,-500.0,0.00012328,2]
[421673292,1778038239000,-634.75,0.00012328,2]
[421673301,1778038239000,-500.0,0.00012328,2]
[421673294,1778038239000,-500.0,0.00012328,2]
[421673306,1778038239000,-1223.87,0.00012328,2]
[421673298,1778038239000,-500.0,0.00012328,2]
[421673296,1778038239000,-1716.1,0.00012328,2]
[421673305,1778038239000,-659.77,0.00012328,2]
[421673303,1778038239000,-1533.58,0.00012328,2]
[421673308,1778038239000,-1569.39,0.00012328,2]
[421673310,1778038239000,-500.0,0.00012328,2]
[421673312,1778038239000,-1667.05,0.00012328,2]
[421673288,1778038239000,-1269.58,0.00012328,2]
[421673259,1778038239000,-500.0,0.00012328,2]
[421673275,1778038239000,-500.0,0.00012328,2]
[421673245,1778038239000,-508.73,0.00012328,2]
[421673187,1778038239000,-275.66858896,0.00012328,2]
[421673189,1778038239000,-500.0,0.00012328,2]
[421673191,1778038239000,-500.0,0.00012328,2]
[421673205,1778038239000,-580.92,0.00012328,2]
[421673193,1778038239000,-500.0,0.00012328,2]
[421673195,1778038239000,-500.0,0.00012328,2]
[421673209,1778038239000,-500.0,0.00012328,2]
[421673211,1778038239000,-500.0,0.00012328,2]
[421673243,1778038239000,-3115.11,0.00012328,2]
[421673216,1778038239000,-1462.45,0.00012328,2]
[421673228,1778038239000,-500.0,0.00012328,2]
[421673226,1778038239000,-1468.64,0.00012328,2]
[421673230,1778038239000,-500.0,0.00012328,2]
[421673224,1778038239000,-500.0,0.00012328,2]
[421673213,1778038239000,-500.0,0.00012328,2]
[421673215,1778038239000,-819.98,0.00012328,2]
[421673232,1778038239000,-500.0,0.00012328,2]
[421673241,1778038239000,-500.96642163,0.00012328,2]
[421673255,1778038239000,-500.0,0.00012328,2]
[421673253,1778038239000,-2698.45,0.00012328,2]
[421673251,1778038239000,-501.15192399,0.00012328,2]
[421673249,1778038239000,-500.0,0.00012328,2]
[421673239,1778038239000,-500.0,0.00012328,2]
[421673236,1778038239000,-500.0,0.00012328,2]
[421673234,1778038239000,-632.45,0.00012328,2]
[421673218,1778038239000,-500.0,0.00012328,2]
[421673222,1778038239000,-500.0,0.00012328,2]
[421673220,1778038239000,-500.0,0.00012328,2]
[421673238,1778038239000,-500.0,0.00012328,2]
[421673416,1778038240000,-500.0,0.00012602,2]
[421673412,1778038240000,-500.0,0.00012602,2]
[421673409,1778038240000,-1921.3525,0.00012602,2]
[421673399,1778038240000,-501.66970442,0.00012328,2]
[421673397,1778038240000,-5239.35,0.00012328,2]
[421673385,1778038240000,-1600.96,0.00012328,2]
[421673393,1778038240000,-500.0,0.00012328,2]
[421673384,1778038240000,-927.9,0.00012328,2]
[421673389,1778038240000,-500.0,0.00012328,2]
[421673387,1778038240000,-500.0,0.00012328,2]
[421673413,1778038240000,-500.0,0.00012602,2]
[421673395,1778038240000,-1301.51,0.00012328,2]
[421673401,1778038240000,-164.71,0.00012369,2]
[421673391,1778038240000,-500.0,0.00012328,2]
[421673403,1778038240000,-168.45,0.00012369,2]
[421673406,1778038240000,-155.0,0.00012481,2]
[421673423,1778038240000,-500.0,0.00012602,2]
[421673427,1778038240000,-500.0,0.00012602,2]
[421673425,1778038240000,-501.61451429,0.00012602,2]
[421673429,1778038240000,-500.0,0.00012602,2]
[421673431,1778038240000,-501.65660157,0.00012602,2]
[421673445,1778038240000,-500.0,0.00012602,2]
[421673443,1778038240000,-500.0,0.00012602,2]
[421673437,1778038240000,-500.0,0.00012602,2]
[421673433,1778038240000,-500.0,0.00012602,2]
[421673446,1778038240000,-628.01,0.00012602,2]
[421673419,1778038240000,-500.0,0.00012602,2]
[421673380,1778038240000,-500.0,0.00012328,2]
[421673448,1778038240000,-500.0,0.00012602,2]
[421673378,1778038240000,-1428.52,0.00012328,2]
[421673328,1778038240000,-4066.11,0.00012328,2]
[421673326,1778038240000,-500.0,0.00012328,2]
[421673335,1778038240000,-500.0,0.00012328,2]
[421673337,1778038240000,-1112.67,0.00012328,2]
[421673330,1778038240000,-500.0,0.00012328,2]
[421673332,1778038240000,-500.0,0.00012328,2]
[421673333,1778038240000,-500.0,0.00012328,2]
[421673339,1778038240000,-3688.75,0.00012328,2]
[421673341,1778038240000,-883.98,0.00012328,2]
[421673343,1778038240000,-500.0,0.00012328,2]
[421673345,1778038240000,-3099.42,0.00012328,2]
[421673347,1778038240000,-998.3,0.00012328,2]
[421673349,1778038240000,-1815.59,0.00012328,2]
[421673351,1778038240000,-636.57,0.00012328,2]
[421673353,1778038240000,-1330.08,0.00012328,2]
[421673361,1778038240000,-2515.61,0.00012328,2]
[421673359,1778038240000,-500.0,0.00012328,2]
[421673356,1778038240000,-500.0,0.00012328,2]
[421673357,1778038240000,-1613.6,0.00012328,2]
[421673363,1778038240000,-500.0,0.00012328,2]
[421673370,1778038240000,-2183.28,0.00012328,2]
[421673369,1778038240000,-4934.05,0.00012328,2]
[421673372,1778038240000,-1169.05,0.00012328,2]
[421673365,1778038240000,-24724.9,0.00012328,2]
[421673367,1778038240000,-1095.43,0.00012328,2]
[421673374,1778038240000,-500.0,0.00012328,2]
[421673376,1778038240000,-734.16,0.00012328,2]
[421673382,1778038240000,-500.0,0.00012328,2]
[421673439,1778038240000,-500.0,0.00012602,2]
[421673441,1778038240000,-500.0,0.00012602,2]
[421673450,1778038240000,-500.0,0.00012602,2]
[421673503,1778038240000,-501.45015983,0.00012602,2]
[421673505,1778038240000,-500.0,0.00012602,2]
[421673516,1778038240000,-500.0,0.00012602,2]
[421673515,1778038240000,-500.0,0.00012602,2]
[421673501,1778038240000,-692.54,0.00012602,2]
[421673499,1778038240000,-500.0,0.00012602,2]
[421673507,1778038240000,-500.0,0.00012602,2]
[421673518,1778038240000,-500.0,0.00012602,2]
[421673520,1778038240000,-269.47397924,0.00012602,2]
[421673522,1778038240000,-168.36733979,0.00012602,2]
[421673530,1778038240000,-884.06,0.00012602,2]
[421673528,1778038240000,-500.0,0.00012602,2]
[421673524,1778038240000,-500.0,0.00012602,2]
[421673526,1778038240000,-677.72,0.00012602,2]
[421673536,1778038240000,-500.0,0.00012602,2]
[421673532,1778038240000,-580.92,0.00012602,2]
[421673541,1778038240000,-819.98,0.00012602,2]
[421673534,1778038240000,-500.0,0.00012602,2]
[421673539,1778038240000,-500.0,0.00012602,2]
[421673543,1778038240000,-1462.45,0.00012602,2]
[421673545,1778038240000,-500.0,0.00012602,2]
[421673549,1778038240000,-500.0,0.00012602,2]
[421673547,1778038240000,-500.0,0.00012602,2]
[421673551,1778038240000,-501.61315666,0.00012602,2]
[421673552,1778038240000,-1468.64,0.00012602,2]
[421673556,1778038240000,-500.0,0.00012602,2]
[421673435,1778038240000,-685.67,0.00012602,2]
[421673509,1778038240000,-600.55,0.00012602,2]
[421673511,1778038240000,-500.0,0.00012602,2]
[421673538,1778038240000,-500.0,0.00012602,2]
[421673495,1778038240000,-500.0,0.00012602,2]
[421673512,1778038240000,-500.0,0.00012602,2]
[421673452,1778038240000,-500.0,0.00012602,2]
[421673466,1778038240000,-636.99,0.00012602,2]
[421673454,1778038240000,-1249.9,0.00012602,2]
[421673458,1778038240000,-500.0,0.00012602,2]
[421673456,1778038240000,-500.0,0.00012602,2]
[421673467,1778038240000,-500.0,0.00012602,2]